[Event "*** Titled Tuesday Blitz"]
[Site "Chess.com"]
[Date "2020.11.10"]
[Round "2"]
[White "davigator"]
[Black "kingofthenil"]
[Result "0-1"]
[WhiteElo "2387"]
[BlackElo "2676"]
[TimeControl "180+1"]
[EndTime "10:20:13 PST"]
[Termination "kingofthenil won by resignation"]

1. e4 {[%clk 0:03:00.9]} 1... Nc6 {[%clk 0:03:00.1]} 2. Bb5 {[%clk 0:02:59.8]}
2... d5 {[%clk 0:03:00.3]} 3. e5 {[%clk 0:02:57.3]} 3... Bf5 {[%clk 0:02:57.2]}
4. h3 {[%clk 0:02:54.9]} 4... e6 {[%clk 0:02:56]} 5. d4 {[%clk 0:02:53.5]} 5...
f6 {[%clk 0:02:54.9]} 6. Nf3 {[%clk 0:02:50.6]} 6... Ne7 {[%clk 0:02:50]} 7. O-O
{[%clk 0:02:48.6]} 7... a6 {[%clk 0:02:47.4]} 8. Bd3 {[%clk 0:02:45]} 8... Bg6
{[%clk 0:02:39.6]} 9. Re1 {[%clk 0:02:39.1]} 9... Qd7 {[%clk 0:02:36.4]} 10. c3
{[%clk 0:02:34.3]} 10... O-O-O {[%clk 0:01:37.2]} 11. b4 {[%clk 0:02:33.2]}
11... fxe5 {[%clk 0:01:33.5]} 12. dxe5 {[%clk 0:02:32.6]} 12... Bxd3 {[%clk
0:01:33.4]} 13. Qxd3 {[%clk 0:02:31.8]} 13... Ng6 {[%clk 0:01:34.3]} 14. a4
{[%clk 0:02:29.4]} 14... Nce7 {[%clk 0:01:24.4]} 15. b5 {[%clk 0:02:28.7]} 15...
a5 {[%clk 0:01:24.4]} 16. b6 {[%clk 0:02:24.8]} 16... cxb6 {[%clk 0:01:18.5]}
17. Be3 {[%clk 0:02:22.9]} 17... Qc7 {[%clk 0:01:08]} 18. Nbd2 {[%clk
0:02:21.4]} 18... Nf5 {[%clk 0:01:00.9]} 19. Bd4 {[%clk 0:02:20.7]} 19... Bc5
{[%clk 0:01:00.2]} 20. Nb3 {[%clk 0:02:18.9]} 20... Rdf8 {[%clk 0:00:47.4]} 21.
Qb5 {[%clk 0:02:18.3]} 21... Nf4 {[%clk 0:00:30.8]} 22. Nxc5 {[%clk 0:02:13.7]}
22... bxc5 {[%clk 0:00:31.7]} 23. Bxc5 {[%clk 0:02:13.8]} 23... Rfg8 {[%clk
0:00:20.7]} 24. Bb6 {[%clk 0:02:12.6]} 24... Qc6 {[%clk 0:00:12.9]} 25. Qxa5
{[%clk 0:02:12.4]} 25... g5 {[%clk 0:00:12.6]} 26. Nd4 {[%clk 0:02:08.2]} 26...
Nxd4 {[%clk 0:00:05.4]} 27. cxd4 {[%clk 0:02:08.4]} 27... Nd3 {[%clk 0:00:01.4]}
28. Re3 {[%clk 0:02:05.8]} 28... Nb2 {[%clk 0:00:01.5]} 29. Bc5 {[%clk
0:01:54.7]} 29... Nc4 {[%clk 0:00:02.4]} 30. Qc3 {[%clk 0:01:53.1]} 30... g4
{[%clk 0:00:02.1]} 31. Rg3 {[%clk 0:01:51.3]} 31... h5 {[%clk 0:00:01.4]} 32. h4
{[%clk 0:01:48.7]} 32... Rf8 {[%clk 0:00:01.2]} 33. a5 {[%clk 0:01:47.4]} 33...
Rf5 {[%clk 0:00:01.4]} 34. a6 {[%clk 0:01:47.1]} 34... bxa6 {[%clk 0:00:02.3]}
35. Ra2 {[%clk 0:01:41]} 35... Kd7 {[%clk 0:00:02.7]} 36. Qc2 {[%clk 0:01:34.7]}
36... Rb8 {[%clk 0:00:02.8]} 37. Rb3 {[%clk 0:01:32.9]} 37... Rxb3 {[%clk
0:00:02.1]} 38. Qxb3 {[%clk 0:01:33]} 38... Qb5 {[%clk 0:00:03]} 39. Qxb5+
{[%clk 0:01:30.7]} 39... axb5 {[%clk 0:00:03.9]} 40. Ra7+ {[%clk 0:01:30.4]}
40... Kc6 {[%clk 0:00:01.2]} 41. Re7 {[%clk 0:01:29.8]} 41... Rf4 {[%clk
0:00:01.8]} 42. Rxe6+ {[%clk 0:01:29.7]} 42... Kc7 {[%clk 0:00:02.7]} 43. g3
{[%clk 0:01:26.4]} 43... Re4 {[%clk 0:00:03]} 44. Re7+ {[%clk 0:01:24.6]} 44...
Kc6 {[%clk 0:00:03]} 45. Re8 {[%clk 0:01:24.3]} 45... b4 {[%clk 0:00:03.9]} 46.
Rb8 {[%clk 0:01:24.3]} 46... Re1+ {[%clk 0:00:02.7]} 47. Kg2 {[%clk 0:01:24.3]}
47... b3 {[%clk 0:00:01.2]} 48. Rxb3 {[%clk 0:01:21.2]} 48... Nd2 {[%clk
0:00:02.1]} 49. Rd3 {[%clk 0:01:18.7]} 49... Nf3 {[%clk 0:00:02.1]} 50. Rxf3
{[%clk 0:01:18.9]} 50... gxf3+ {[%clk 0:00:03]} 51. Kxf3 {[%clk 0:01:19.4]}
51... Re4 {[%clk 0:00:03.9]} 52. Kg2 {[%clk 0:01:15.8]} 52... Kd7 {[%clk
0:00:04.2]} 53. f3 {[%clk 0:01:16.1]} 53... Re2+ {[%clk 0:00:04.5]} 54. Kh3
{[%clk 0:01:16.6]} 54... Re3 {[%clk 0:00:05.1]} 55. f4 {[%clk 0:01:15.2]} 55...
Ke6 {[%clk 0:00:05.1]} 56. Be7 {[%clk 0:01:14.6]} 56... Kxe7 {[%clk 0:00:04.5]}
57. f5 {[%clk 0:01:14.5]} 57... Re4 {[%clk 0:00:04.5]} 58. Kg2 {[%clk
0:01:13.2]} 58... Rxd4 {[%clk 0:00:04.7]} 59. Kf3 {[%clk 0:01:13]} 59... Re4
{[%clk 0:00:05.3]} 60. e6 {[%clk 0:01:11.2]} 60... Kf6 {[%clk 0:00:05.4]} 61. g4
{[%clk 0:01:09.6]} 61... Rxg4 {[%clk 0:00:05.5]} 0-1

[Event "*** Titled Tuesday Blitz"]
[Site "Chess.com"]
[Date "2020.11.10"]
[Round "2"]
[White "cottage_cheese"]
[Black "KetiGrant"]
[Result "0-1"]
[WhiteElo "2149"]
[BlackElo "2402"]
[TimeControl "180+1"]
[EndTime "10:20:13 PST"]
[Termination "KetiGrant won on time"]

1. e4 {[%clk 0:03:00.9]} 1... c5 {[%clk 0:02:58.9]} 2. Nf3 {[%clk 0:03:00.2]}
2... Nc6 {[%clk 0:02:58.4]} 3. Bb5 {[%clk 0:02:59.8]} 3... g6 {[%clk 0:02:57.8]}
4. Bxc6 {[%clk 0:02:58.9]} 4... dxc6 {[%clk 0:02:56.7]} 5. d3 {[%clk 0:02:58.5]}
5... Bg7 {[%clk 0:02:56.6]} 6. h3 {[%clk 0:02:58.7]} 6... e5 {[%clk 0:02:54]} 7.
Be3 {[%clk 0:02:55.4]} 7... b6 {[%clk 0:02:52.9]} 8. a4 {[%clk 0:02:49.1]} 8...
a5 {[%clk 0:02:51.8]} 9. Nbd2 {[%clk 0:02:47.4]} 9... Qc7 {[%clk 0:02:46.7]} 10.
Nc4 {[%clk 0:02:45.7]} 10... Ba6 {[%clk 0:02:39.6]} 11. Qd2 {[%clk 0:02:43.4]}
11... O-O-O {[%clk 0:02:32]} 12. Qc3 {[%clk 0:02:10.5]} 12... f5 {[%clk
0:02:17.7]} 13. Qb3 {[%clk 0:01:50.1]} 13... Bxc4 {[%clk 0:02:15.9]} 14. Qxc4
{[%clk 0:01:47.7]} 14... f4 {[%clk 0:02:14.2]} 15. Bd2 {[%clk 0:01:33.1]} 15...
Nf6 {[%clk 0:02:12.6]} 16. Ng5 {[%clk 0:01:18.7]} 16... Rd7 {[%clk 0:01:39.7]}
17. Ne6 {[%clk 0:01:09.9]} 17... Qb7 {[%clk 0:01:19.8]} 18. Bc3 {[%clk
0:01:05.9]} 18... Re8 {[%clk 0:01:04.5]} 19. Bxe5 {[%clk 0:00:59.3]} 19... Bh8
{[%clk 0:00:53.4]} 20. Bc3 {[%clk 0:00:51.7]} 20... Rde7 {[%clk 0:00:48.3]} 21.
Nxf4 {[%clk 0:00:34.5]} 21... Nxe4 {[%clk 0:00:47.2]} 22. O-O {[%clk 0:00:34.5]}
22... Nxc3 {[%clk 0:00:36]} 23. bxc3 {[%clk 0:00:32.3]} 23... Be5 {[%clk
0:00:35.4]} 24. Ne2 {[%clk 0:00:28.6]} 24... Bb8 {[%clk 0:00:30]} 25. Ng3 {[%clk
0:00:25.4]} 25... h5 {[%clk 0:00:28.5]} 26. Ne4 {[%clk 0:00:22.3]} 26... g5
{[%clk 0:00:22.8]} 27. Rab1 {[%clk 0:00:21.9]} 27... Qc7 {[%clk 0:00:21]} 28.
Qa6+ {[%clk 0:00:16.3]} 28... Kd8 {[%clk 0:00:19.9]} 29. g3 {[%clk 0:00:14.5]}
29... Ba7 {[%clk 0:00:14.2]} 30. Rfe1 {[%clk 0:00:06.3]} 30... h4 {[%clk
0:00:13.9]} 31. Kg2 {[%clk 0:00:04.4]} 31... hxg3 {[%clk 0:00:13.2]} 32. fxg3
{[%clk 0:00:03.6]} 32... g4 {[%clk 0:00:12.6]} 33. hxg4 {[%clk 0:00:01.3]} 33...
Rh8 {[%clk 0:00:12.4]} 34. Qc4 {[%clk 0:00:01.5]} 34... Reh7 {[%clk 0:00:12]}
0-1

[Event "*** Titled Tuesday Blitz"]
[Site "Chess.com"]
[Date "2020.11.10"]
[Round "2"]
[White "Nikolaj_6"]
[Black "hansen"]
[Result "1-0"]
[WhiteElo "2590"]
[BlackElo "2897"]
[TimeControl "180+1"]
[EndTime "10:20:14 PST"]
[Termination "Nikolaj_6 won by resignation"]

1. e4 {[%clk 0:03:00.9]} 1... c5 {[%clk 0:03:00.1]} 2. Nf3 {[%clk 0:03:01]} 2...
e6 {[%clk 0:03:00.4]} 3. d4 {[%clk 0:03:00.5]} 3... cxd4 {[%clk 0:03:01.3]} 4.
Nxd4 {[%clk 0:03:01.1]} 4... a6 {[%clk 0:03:02]} 5. Nc3 {[%clk 0:03:01.4]} 5...
Qc7 {[%clk 0:03:00.7]} 6. Bd3 {[%clk 0:02:58.7]} 6... Nc6 {[%clk 0:02:54.1]} 7.
Nxc6 {[%clk 0:02:57.5]} 7... dxc6 {[%clk 0:02:43.6]} 8. O-O {[%clk 0:02:55.2]}
8... e5 {[%clk 0:02:38.6]} 9. f4 {[%clk 0:02:53.8]} 9... Nf6 {[%clk 0:02:37.7]}
10. Qe1 {[%clk 0:02:40.5]} 10... Bd6 {[%clk 0:02:33.1]} 11. Kh1 {[%clk
0:02:27.2]} 11... Be6 {[%clk 0:02:04.4]} 12. f5 {[%clk 0:02:22.9]} 12... Bc8
{[%clk 0:01:51.7]} 13. a4 {[%clk 0:02:13.1]} 13... a5 {[%clk 0:01:46.8]} 14. Be3
{[%clk 0:02:09.6]} 14... Qe7 {[%clk 0:01:30.7]} 15. Nb1 {[%clk 0:02:01.3]} 15...
Bc5 {[%clk 0:01:29.3]} 16. Nd2 {[%clk 0:01:49.8]} 16... Bxe3 {[%clk 0:01:20.7]}
17. Qxe3 {[%clk 0:01:49.1]} 17... O-O {[%clk 0:01:16.7]} 18. Nc4 {[%clk
0:01:30.3]} 18... Nd7 {[%clk 0:00:59.9]} 19. Nb6 {[%clk 0:01:24.5]} 19... Nxb6
{[%clk 0:00:58.8]} 20. Qxb6 {[%clk 0:01:25.4]} 20... Qb4 {[%clk 0:00:55.6]} 21.
Qe3 {[%clk 0:01:09.3]} 21... f6 {[%clk 0:00:48.8]} 22. b3 {[%clk 0:01:09.1]}
22... Bd7 {[%clk 0:00:36.2]} 23. Bc4+ {[%clk 0:01:07.3]} 23... Kh8 {[%clk
0:00:36.1]} 24. Rad1 {[%clk 0:01:07]} 24... Rfd8 {[%clk 0:00:32.3]} 25. c3
{[%clk 0:00:58.4]} 25... Qe7 {[%clk 0:00:31.4]} 26. Qb6 {[%clk 0:00:56.9]} 26...
Be8 {[%clk 0:00:31.6]} 27. h3 {[%clk 0:00:52.2]} 27... g6 {[%clk 0:00:29.8]} 28.
Be6 {[%clk 0:00:48.5]} 28... gxf5 {[%clk 0:00:27.2]} 29. Bxf5 {[%clk 0:00:45.6]}
29... Bf7 {[%clk 0:00:24.3]} 30. b4 {[%clk 0:00:33]} 30... axb4 {[%clk
0:00:22.9]} 31. cxb4 {[%clk 0:00:32.7]} 31... Bb3 {[%clk 0:00:20.1]} 32. Rxd8+
{[%clk 0:00:28.9]} 32... Rxd8 {[%clk 0:00:21]} 33. a5 {[%clk 0:00:26.4]} 33...
Bc4 {[%clk 0:00:21.3]} 34. Rc1 {[%clk 0:00:23.1]} 34... Bb5 {[%clk 0:00:21.2]}
35. Qe3 {[%clk 0:00:19.2]} 35... Qxb4 {[%clk 0:00:18.9]} 36. Qh6 {[%clk
0:00:17.6]} 36... Qe7 {[%clk 0:00:18.3]} 37. Rc3 {[%clk 0:00:15.8]} 37... Qg7
{[%clk 0:00:17.4]} 38. Qh4 {[%clk 0:00:14.7]} 38... Be2 {[%clk 0:00:10.9]} 39.
Rg3 {[%clk 0:00:14]} 39... Qe7 {[%clk 0:00:07.1]} 40. Bxh7 {[%clk 0:00:13.7]}
1-0

[Event "*** Titled Tuesday Blitz"]
[Site "Chess.com"]
[Date "2020.11.10"]
[Round "2"]
[White "Vsevolod_Ovchinnikov"]
[Black "DrVelja"]
[Result "0-1"]
[WhiteElo "2522"]
[BlackElo "2758"]
[TimeControl "180+1"]
[EndTime "10:20:14 PST"]
[Termination "DrVelja won on time"]

1. d4 {[%clk 0:03:00.9]} 1... Nf6 {[%clk 0:02:59.8]} 2. c4 {[%clk 0:03:01]} 2...
g6 {[%clk 0:02:59.5]} 3. Nc3 {[%clk 0:03:00.7]} 3... d5 {[%clk 0:02:59]} 4. Nf3
{[%clk 0:03:00.5]} 4... Bg7 {[%clk 0:02:58.5]} 5. h4 {[%clk 0:03:00.8]} 5...
dxc4 {[%clk 0:02:54.1]} 6. e4 {[%clk 0:02:58]} 6... c5 {[%clk 0:02:54.3]} 7. d5
{[%clk 0:02:57.4]} 7... b5 {[%clk 0:02:54.3]} 8. h5 {[%clk 0:02:43.4]} 8... O-O
{[%clk 0:02:53.4]} 9. hxg6 {[%clk 0:02:24.1]} 9... fxg6 {[%clk 0:02:54.3]} 10.
Bh6 {[%clk 0:02:05.9]} 10... Bxh6 {[%clk 0:02:27.9]} 11. Rxh6 {[%clk 0:02:06.8]}
11... b4 {[%clk 0:02:26.9]} 12. Na4 {[%clk 0:02:03.8]} 12... Nxe4 {[%clk
0:01:59.5]} 13. Bxc4 {[%clk 0:02:02.4]} 13... Nd6 {[%clk 0:01:53.3]} 14. Bd3
{[%clk 0:01:48.5]} 14... Kg7 {[%clk 0:01:29.8]} 15. Rh4 {[%clk 0:01:46.2]} 15...
e5 {[%clk 0:01:01.7]} 16. Qd2 {[%clk 0:00:50.9]} 16... h5 {[%clk 0:01:01.7]} 17.
Bxg6 {[%clk 0:00:20.4]} 17... Rxf3 {[%clk 0:00:38.4]} 18. Rxh5 {[%clk
0:00:20.4]} 18... Rf4 {[%clk 0:00:38.7]} 19. g3 {[%clk 0:00:12.4]} 19... Kxg6
{[%clk 0:00:34.9]} 20. gxf4 {[%clk 0:00:12]} 20... Kxh5 {[%clk 0:00:35.3]} 21.
O-O-O {[%clk 0:00:09.7]} 21... Kg6 {[%clk 0:00:31.7]} 22. Rg1+ {[%clk
0:00:08.4]} 22... Kf7 {[%clk 0:00:30.7]} 23. fxe5 {[%clk 0:00:08.3]} 23... Nf5
{[%clk 0:00:28.1]} 24. e6+ {[%clk 0:00:08.2]} 24... Kf8 {[%clk 0:00:19.6]} 25.
Nxc5 {[%clk 0:00:05.5]} 25... Qc7 {[%clk 0:00:12.1]} 26. Qc2 {[%clk 0:00:05.3]}
26... Qf4+ {[%clk 0:00:11.6]} 27. Kb1 {[%clk 0:00:05.2]} 27... Ba6 {[%clk
0:00:08.7]} 28. a3 {[%clk 0:00:01.6]} 28... b3 {[%clk 0:00:08.1]} 29. Qxb3
{[%clk 0:00:01.7]} 29... Qxf2 {[%clk 0:00:08.7]} 30. Rg5 {[%clk 0:00:01.3]}
30... Nd4 {[%clk 0:00:06.5]} 0-1

[Event "*** Titled Tuesday Blitz"]
[Site "Chess.com"]
[Date "2020.11.10"]
[Round "2"]
[White "jens1102"]
[Black "horripile"]
[Result "0-1"]
[WhiteElo "2367"]
[BlackElo "2670"]
[TimeControl "180+1"]
[EndTime "10:20:17 PST"]
[Termination "horripile won by resignation"]

1. c4 {[%clk 0:03:00.9]} 1... c5 {[%clk 0:02:59.1]} 2. Nf3 {[%clk 0:02:59.4]}
2... g6 {[%clk 0:02:59]} 3. Nc3 {[%clk 0:02:58.6]} 3... Bg7 {[%clk 0:02:58.6]}
4. e3 {[%clk 0:02:58.8]} 4... Nf6 {[%clk 0:02:58.2]} 5. d4 {[%clk 0:02:59.1]}
5... cxd4 {[%clk 0:02:58.1]} 6. exd4 {[%clk 0:03:00]} 6... d5 {[%clk 0:02:57.8]}
7. cxd5 {[%clk 0:03:00.9]} 7... O-O {[%clk 0:02:57.8]} 8. Bc4 {[%clk 0:02:57.3]}
8... Nbd7 {[%clk 0:02:55.8]} 9. O-O {[%clk 0:02:57.1]} 9... Nb6 {[%clk
0:02:55.4]} 10. Bb3 {[%clk 0:02:51.7]} 10... Nbxd5 {[%clk 0:02:55.2]} 11. Bg5
{[%clk 0:02:50.2]} 11... b6 {[%clk 0:02:53.3]} 12. Nxd5 {[%clk 0:02:46.2]} 12...
Nxd5 {[%clk 0:02:52.7]} 13. Re1 {[%clk 0:02:47.1]} 13... Bb7 {[%clk 0:02:52]}
14. Rc1 {[%clk 0:02:41.9]} 14... Re8 {[%clk 0:02:46.8]} 15. Qd2 {[%clk
0:02:34.7]} 15... a6 {[%clk 0:02:44]} 16. a3 {[%clk 0:01:52.3]} 16... Qd6 {[%clk
0:02:40.6]} 17. Bh4 {[%clk 0:01:50.1]} 17... Rac8 {[%clk 0:02:38.5]} 18. Bg3
{[%clk 0:01:48.8]} 18... Qd8 {[%clk 0:02:35.2]} 19. Rxc8 {[%clk 0:01:46.4]}
19... Qxc8 {[%clk 0:02:34.9]} 20. Be5 {[%clk 0:01:41.5]} 20... e6 {[%clk
0:02:31.6]} 21. Bxg7 {[%clk 0:01:40.8]} 21... Kxg7 {[%clk 0:02:32.5]} 22. Rc1
{[%clk 0:01:39.7]} 22... Qd8 {[%clk 0:02:29.1]} 23. Ne5 {[%clk 0:01:36.6]} 23...
Nf6 {[%clk 0:02:15.1]} 24. f3 {[%clk 0:01:29.1]} 24... Qb8 {[%clk 0:02:02.2]}
25. Qg5 {[%clk 0:01:16.7]} 25... Rc8 {[%clk 0:01:57.3]} 26. Re1 {[%clk
0:01:13.5]} 26... Qd6 {[%clk 0:01:31.3]} 27. Nxf7 {[%clk 0:01:05.6]} 27... Qxd4+
{[%clk 0:01:27.3]} 28. Kh1 {[%clk 0:01:02.7]} 28... Kxf7 {[%clk 0:01:20.9]} 29.
Bxe6+ {[%clk 0:00:58.5]} 29... Kg7 {[%clk 0:01:21]} 30. Bxc8 {[%clk 0:00:57.2]}
30... Bxc8 {[%clk 0:01:21.9]} 31. Qe5 {[%clk 0:00:43]} 31... Qxe5 {[%clk
0:01:20.6]} 32. Rxe5 {[%clk 0:00:43.9]} 32... Kf7 {[%clk 0:01:20.6]} 33. Kg1
{[%clk 0:00:44]} 33... Be6 {[%clk 0:01:19.6]} 34. Kf2 {[%clk 0:00:42.7]} 34...
h5 {[%clk 0:01:19.2]} 35. h4 {[%clk 0:00:39.8]} 35... Ke7 {[%clk 0:01:17]} 36.
Re1 {[%clk 0:00:34.6]} 36... Kd6 {[%clk 0:01:16.7]} 37. Rd1+ {[%clk 0:00:34.5]}
37... Nd5 {[%clk 0:01:16.6]} 38. Rc1 {[%clk 0:00:24]} 38... a5 {[%clk
0:01:15.9]} 39. g3 {[%clk 0:00:22.9]} 39... b5 {[%clk 0:01:15.1]} 40. Rg1 {[%clk
0:00:19.1]} 40... Nf6 {[%clk 0:01:05.2]} 41. Ke3 {[%clk 0:00:17.4]} 41... Ke5
{[%clk 0:01:04]} 42. Rc1 {[%clk 0:00:16.6]} 42... Nd5+ {[%clk 0:01:03.2]} 43.
Kf2 {[%clk 0:00:16.9]} 43... Kd6 {[%clk 0:01:02.5]} 44. Rg1 {[%clk 0:00:16.7]}
44... Nb6 {[%clk 0:01:02.9]} 45. g4 {[%clk 0:00:16.8]} 45... Bf7 {[%clk
0:01:01]} 46. gxh5 {[%clk 0:00:16.6]} 46... gxh5 {[%clk 0:01:01.3]} 47. Rg7
{[%clk 0:00:17.5]} 47... Ke7 {[%clk 0:00:58.7]} 48. Rg5 {[%clk 0:00:17.5]} 48...
Be8 {[%clk 0:00:59]} 49. Re5+ {[%clk 0:00:17.1]} 49... Kd8 {[%clk 0:00:57.8]}
50. f4 {[%clk 0:00:17.6]} 50... Nc4 {[%clk 0:00:57.6]} 51. Rd5+ {[%clk
0:00:17.3]} 51... Ke7 {[%clk 0:00:57.4]} 52. b4 {[%clk 0:00:17.2]} 52... a4
{[%clk 0:00:57.2]} 53. Rd3 {[%clk 0:00:16.8]} 53... Bg6 {[%clk 0:00:54.9]} 54.
Rg3 {[%clk 0:00:16.7]} 54... Kf6 {[%clk 0:00:54.7]} 55. Ke2 {[%clk 0:00:16.3]}
55... Bf7 {[%clk 0:00:52.5]} 56. Kd1 {[%clk 0:00:15]} 56... Be6 {[%clk
0:00:52.7]} 57. Kc2 {[%clk 0:00:14.2]} 57... Bg4 {[%clk 0:00:52.9]} 58. Rd3
{[%clk 0:00:13.2]} 58... Bf5 {[%clk 0:00:51.5]} 59. Kc3 {[%clk 0:00:12.9]} 59...
Bxd3 {[%clk 0:00:51.2]} 0-1

[Event "*** Titled Tuesday Blitz"]
[Site "Chess.com"]
[Date "2020.11.10"]
[Round "2"]
[White "petrkostenko"]
[Black "BikingBrian"]
[Result "1-0"]
[WhiteElo "2467"]
[BlackElo "2268"]
[TimeControl "180+1"]
[EndTime "10:20:17 PST"]
[Termination "petrkostenko won by resignation"]

1. e4 {[%clk 0:03:00.9]} 1... c5 {[%clk 0:02:58.3]} 2. Nf3 {[%clk 0:02:55.8]}
2... g6 {[%clk 0:02:58.5]} 3. c3 {[%clk 0:02:53.2]} 3... Bg7 {[%clk 0:02:57.9]}
4. d4 {[%clk 0:02:53.1]} 4... cxd4 {[%clk 0:02:58.8]} 5. cxd4 {[%clk 0:02:52.6]}
5... d5 {[%clk 0:02:59.1]} 6. e5 {[%clk 0:02:53]} 6... Bg4 {[%clk 0:02:58.6]} 7.
Nbd2 {[%clk 0:02:52.7]} 7... Nc6 {[%clk 0:02:53.3]} 8. h3 {[%clk 0:02:52.4]}
8... Bxf3 {[%clk 0:02:52.1]} 9. Nxf3 {[%clk 0:02:52.2]} 9... e6 {[%clk
0:02:52.6]} 10. Bd3 {[%clk 0:02:50.1]} 10... Nge7 {[%clk 0:02:50.4]} 11. O-O
{[%clk 0:02:49.6]} 11... O-O {[%clk 0:02:50.2]} 12. Be3 {[%clk 0:02:40.8]} 12...
Qb6 {[%clk 0:02:44.2]} 13. Qd2 {[%clk 0:02:40.3]} 13... f6 {[%clk 0:02:44]} 14.
Rfe1 {[%clk 0:02:20.1]} 14... f5 {[%clk 0:02:36.2]} 15. Rad1 {[%clk 0:02:17.4]}
15... f4 {[%clk 0:02:14.8]} 16. Bxf4 {[%clk 0:02:16.8]} 16... Nxd4 {[%clk
0:02:14.9]} 17. Nxd4 {[%clk 0:02:13.1]} 17... Qxd4 {[%clk 0:02:13.6]} 18. Bg3
{[%clk 0:01:59.4]} 18... Nc6 {[%clk 0:02:03.6]} 19. Qe2 {[%clk 0:01:56.3]} 19...
Qb4 {[%clk 0:01:51.9]} 20. a3 {[%clk 0:01:52.8]} 20... Qe7 {[%clk 0:01:51.2]}
21. Bb1 {[%clk 0:01:44.8]} 21... Na5 {[%clk 0:01:37.6]} 22. h4 {[%clk 0:01:43]}
22... Rac8 {[%clk 0:01:24.8]} 23. Qg4 {[%clk 0:01:33.7]} 23... Rc4 {[%clk
0:01:20.9]} 24. f4 {[%clk 0:01:32.6]} 24... Qf7 {[%clk 0:01:01.3]} 25. Bd3
{[%clk 0:01:31]} 25... Rcc8 {[%clk 0:00:56]} 26. Rf1 {[%clk 0:01:24.6]} 26...
Nc4 {[%clk 0:00:55.5]} 27. Qe2 {[%clk 0:01:23.9]} 27... Qe7 {[%clk 0:00:47]} 28.
Be1 {[%clk 0:01:15.8]} 28... Qc5+ {[%clk 0:00:42.1]} 29. Kh2 {[%clk 0:01:15.2]}
29... Ne3 {[%clk 0:00:39]} 30. Bf2 {[%clk 0:01:12.4]} 30... d4 {[%clk
0:00:39.2]} 31. Bxe3 {[%clk 0:01:09]} 31... dxe3 {[%clk 0:00:40.1]} 32. g3
{[%clk 0:01:09]} 32... Rfd8 {[%clk 0:00:31]} 33. Kh3 {[%clk 0:01:04.5]} 33...
Rd5 {[%clk 0:00:18.7]} 34. h5 {[%clk 0:01:02.6]} 34... Rcd8 {[%clk 0:00:15]} 35.
hxg6 {[%clk 0:00:57.3]} 35... hxg6 {[%clk 0:00:15.9]} 36. Rc1 {[%clk 0:00:56.9]}
36... Qe7 {[%clk 0:00:12.2]} 37. Bxg6 {[%clk 0:00:57.4]} 37... Bf8 {[%clk
0:00:12]} 38. Qh5 {[%clk 0:00:57.6]} 38... Qg7 {[%clk 0:00:12]} 39. Rce1 {[%clk
0:00:52.2]} 39... Qh6 {[%clk 0:00:12.1]} 40. Rxe3 {[%clk 0:00:50.6]} 40... Rd2
{[%clk 0:00:11.5]} 41. Qxh6 {[%clk 0:00:48.8]} 41... Bxh6 {[%clk 0:00:12.4]} 42.
Rb3 {[%clk 0:00:48.7]} 42... R8d7 {[%clk 0:00:11.6]} 43. Be4 {[%clk 0:00:44.8]}
43... b6 {[%clk 0:00:11.1]} 44. Rff3 {[%clk 0:00:43.5]} 44... Bf8 {[%clk
0:00:10.6]} 45. Rfd3 {[%clk 0:00:42.9]} 45... R2xd3 {[%clk 0:00:09.9]} 46. Rxd3
{[%clk 0:00:42]} 46... Rxd3 {[%clk 0:00:10.1]} 47. Bxd3 {[%clk 0:00:42.1]} 47...
Bc5 {[%clk 0:00:10.8]} 48. Bc4 {[%clk 0:00:42.2]} 48... Bd4 {[%clk 0:00:11]} 49.
Bxe6+ {[%clk 0:00:40.9]} 49... Kf8 {[%clk 0:00:11.4]} 50. b3 {[%clk 0:00:41.3]}
50... Ke7 {[%clk 0:00:11.6]} 51. Bc4 {[%clk 0:00:41.4]} 51... Bb2 {[%clk
0:00:11.8]} 52. a4 {[%clk 0:00:41.3]} 52... a5 {[%clk 0:00:12.2]} 53. Kg4 {[%clk
0:00:41.1]} 53... Bc1 {[%clk 0:00:12.3]} 54. Kf5 {[%clk 0:00:41.3]} 54... Be3
{[%clk 0:00:12.1]} 55. g4 {[%clk 0:00:41.8]} 55... Bf2 {[%clk 0:00:12.1]} 56. g5
{[%clk 0:00:42.3]} 56... Bh4 {[%clk 0:00:12.2]} 57. g6 {[%clk 0:00:42.5]} 1-0

[Event "*** Titled Tuesday Blitz"]
[Site "Chess.com"]
[Date "2020.11.10"]
[Round "2"]
[White "KacperPolOK"]
[Black "Kazmin_Dmitrij"]
[Result "1-0"]
[WhiteElo "2462"]
[BlackElo "2264"]
[TimeControl "180+1"]
[EndTime "10:20:17 PST"]
[Termination "KacperPolOK won on time"]

1. e4 {[%clk 0:03:00]} 1... e5 {[%clk 0:02:57.2]} 2. Nf3 {[%clk 0:02:59]} 2...
d6 {[%clk 0:02:57.1]} 3. d4 {[%clk 0:02:57.2]} 3... exd4 {[%clk 0:02:56.6]} 4.
Nxd4 {[%clk 0:02:57]} 4... Nf6 {[%clk 0:02:56.8]} 5. Nc3 {[%clk 0:02:56.6]} 5...
Be7 {[%clk 0:02:57.1]} 6. Be3 {[%clk 0:02:49.6]} 6... O-O {[%clk 0:02:56.9]} 7.
f3 {[%clk 0:02:49]} 7... Re8 {[%clk 0:02:57.1]} 8. Bc4 {[%clk 0:02:45]} 8... c6
{[%clk 0:02:53.5]} 9. O-O {[%clk 0:02:42.6]} 9... Bf8 {[%clk 0:02:53]} 10. Qd2
{[%clk 0:02:41.2]} 10... Nbd7 {[%clk 0:02:52]} 11. a4 {[%clk 0:02:36.1]} 11...
Ne5 {[%clk 0:02:44.9]} 12. Bb3 {[%clk 0:02:35.4]} 12... d5 {[%clk 0:02:38.1]}
13. exd5 {[%clk 0:02:34.1]} 13... Nxd5 {[%clk 0:02:32.5]} 14. Nxd5 {[%clk
0:02:34.3]} 14... cxd5 {[%clk 0:02:32.6]} 15. Rfe1 {[%clk 0:02:30]} 15... Nc4
{[%clk 0:02:27.9]} 16. Bxc4 {[%clk 0:02:09.8]} 16... dxc4 {[%clk 0:02:27.8]} 17.
Nb5 {[%clk 0:02:10.4]} 17... Bd7 {[%clk 0:02:20]} 18. Rad1 {[%clk 0:02:08.3]}
18... Bxb5 {[%clk 0:02:17]} 19. axb5 {[%clk 0:02:08.3]} 19... Qf6 {[%clk
0:02:03.8]} 20. Qd4 {[%clk 0:01:59.8]} 20... Qg6 {[%clk 0:01:47.5]} 21. Qxc4
{[%clk 0:01:37.4]} 21... Rec8 {[%clk 0:01:43.2]} 22. Qd3 {[%clk 0:01:23.4]}
22... Rxc2 {[%clk 0:01:42.3]} 23. Qxg6 {[%clk 0:01:23.5]} 23... hxg6 {[%clk
0:01:42.5]} 24. Rd2 {[%clk 0:01:24]} 24... Rc7 {[%clk 0:01:35.1]} 25. Ra1 {[%clk
0:01:19.8]} 25... Be7 {[%clk 0:00:52.6]} 26. Rxa7 {[%clk 0:01:11.1]} 26... Rxa7
{[%clk 0:00:30.8]} 27. Bxa7 {[%clk 0:01:09.9]} 27... Bc5+ {[%clk 0:00:27.6]} 28.
Bxc5 {[%clk 0:01:07]} 28... Rxc5 {[%clk 0:00:27.6]} 29. Kf2 {[%clk 0:00:44.7]}
29... Rxb5 {[%clk 0:00:27.5]} 30. Ke3 {[%clk 0:00:44.9]} 30... Rb4 {[%clk
0:00:24.2]} 31. Kd3 {[%clk 0:00:43.4]} 31... f6 {[%clk 0:00:19.7]} 32. Kc3
{[%clk 0:00:43.4]} 32... Rb6 {[%clk 0:00:18.6]} 33. Rd7 {[%clk 0:00:43.5]} 33...
Kh7 {[%clk 0:00:15.3]} 34. b4 {[%clk 0:00:41.8]} 34... g5 {[%clk 0:00:13.3]} 35.
g4 {[%clk 0:00:39.8]} 35... Kg6 {[%clk 0:00:12.6]} 36. Kc4 {[%clk 0:00:40.3]}
36... f5 {[%clk 0:00:09.6]} 37. b5 {[%clk 0:00:40.2]} 37... fxg4 {[%clk
0:00:08.3]} 38. fxg4 {[%clk 0:00:40.4]} 38... Re6 {[%clk 0:00:04.4]} 39. h3
{[%clk 0:00:34]} 39... Re3 {[%clk 0:00:01]} 40. Kc5 {[%clk 0:00:22.9]} 1-0